[Event "Titled Tuesday Blitz November 08 Late 2022"]
[White "Adewumi, Tanitoluwa"]
[Black "Aqib Javaid Butt"]
[WhiteFideId "30966396"]
[BlackFideId "7801262"]
[WhiteElo "2550"]
[BlackElo "1659"]
[Result "1-0"]
[Round "01"]
[TimeControl "180+1"]
[Date "2022.11.09"]
[WhiteClock "0:00:15"]
[BlackClock "0:00:03"]

1. e4 {[%clk 0:02:38]}  c6 {[%clk 0:02:55]} 2. d4 {[%clk 0:02:32]}  d5 {[%clk 0:02:55]} 3. exd5 {[%clk 0:02:32]}  cxd5 {[%clk 0:02:56]} 4. Bd3 {[%clk 0:02:32]}  Nc6 {[%clk 0:02:56]} 5. c3 {[%clk 0:02:31]}  Nf6 {[%clk 0:02:55]} 6. h3 {[%clk 0:02:28]}  e6 {[%clk 0:02:44]} 7. Nf3 {[%clk 0:02:15]}  Bd6 {[%clk 0:02:36]} 8. O-O {[%clk 0:02:10]}  h6 {[%clk 0:02:33]} 9. Re1 {[%clk 0:01:59]}  Qc7 {[%clk 0:02:30]} 10. Qe2 {[%clk 0:01:59]}  Bf4 {[%clk 0:02:22]} 11. Bxf4 {[%clk 0:01:54]}  Qxf4 {[%clk 0:02:23]} 12. Ne5 {[%clk 0:01:55]}  Nxe5 {[%clk 0:02:06]} 13. dxe5 {[%clk 0:01:45]}  Nd7 {[%clk 0:02:05]} 14. g3 {[%clk 0:01:44]}  Qa4 {[%clk 0:01:55]} 15. Na3 {[%clk 0:01:34]}  O-O {[%clk 0:01:49]} 16. Nb5 {[%clk 0:01:23]}  a6 {[%clk 0:01:33]} 17. Nd6 {[%clk 0:01:21]}  Qc6 {[%clk 0:01:04]} 18. Qg4 {[%clk 0:01:01]}  Nxe5 {[%clk 0:00:44]} 19. Nxc8 {[%clk 0:00:56]}  Nxg4 {[%clk 0:00:28]} 20. Ne7+ {[%clk 0:00:55]}  Kh8 {[%clk 0:00:23]} 21. Nxc6 {[%clk 0:00:56]}  Nxf2 {[%clk 0:00:16]} 22. Kxf2 {[%clk 0:00:45]}  bxc6 {[%clk 0:00:16]} 23. c4 {[%clk 0:00:40]}  Rab8 {[%clk 0:00:15]} 24. b3 {[%clk 0:00:40]}  Rb4 {[%clk 0:00:14]} 25. Rac1 {[%clk 0:00:40]}  a5 {[%clk 0:00:14]} 26. cxd5 {[%clk 0:00:25]}  cxd5 {[%clk 0:00:15]} 27. Rc5 {[%clk 0:00:25]}  a4 {[%clk 0:00:14]} 28. Rb5 {[%clk 0:00:20]}  Rb8 {[%clk 0:00:10]} 29. Rxb8+ {[%clk 0:00:19]}  Rxb8 {[%clk 0:00:09]} 30. bxa4 {[%clk 0:00:19]}  Ra8 {[%clk 0:00:08]} 31. Rb1 {[%clk 0:00:17]}  g6 {[%clk 0:00:07]} 32. Bb5 {[%clk 0:00:17]}  Kg7 {[%clk 0:00:06]} 33. Rb3 {[%clk 0:00:15]}  Kf6 {[%clk 0:00:06]} 34. Ra3 {[%clk 0:00:15]}  Ra5 {[%clk 0:00:05]} 35. Rc3 {[%clk 0:00:15]}  Ke5 {[%clk 0:00:03]} 36. Rc6 {[%clk 0:00:15]}  f5 {[%clk 0:00:03]} 37. Ra6 {[%clk 0:00:15]} 1-0


[Site "https://www.chess.com"]

[Event "Titled Tuesday Blitz November 08 Late 2022"]
[White "Aghasiyev, Kamal"]
[Black "Schuster, Karsten"]
[WhiteFideId "13402854"]
[BlackFideId "4611071"]
[WhiteElo "2341"]
[BlackElo "2294"]
[Result "1-0"]
[Round "01"]
[TimeControl "180+1"]
[Date "2022.11.09"]
[WhiteClock "0:01:26"]
[BlackClock "0:00:41"]

1. d4 {[%clk 0:03:00]}  d6 {[%clk 0:02:59]} 2. c4 {[%clk 0:03:00]}  Nf6 {[%clk 0:03:00]} 3. Nf3 {[%clk 0:03:01]}  g6 {[%clk 0:03:00]} 4. Nc3 {[%clk 0:03:01]}  Bg7 {[%clk 0:03:01]} 5. g3 {[%clk 0:03:01]}  O-O {[%clk 0:03:01]} 6. Bg2 {[%clk 0:03:01]}  Nbd7 {[%clk 0:03:00]} 7. O-O {[%clk 0:03:02]}  c6 {[%clk 0:03:01]} 8. b3 {[%clk 0:03:02]}  e5 {[%clk 0:03:00]} 9. Ba3 {[%clk 0:03:02]}  Qe7 {[%clk 0:02:33]} 10. e3 {[%clk 0:03:00]}  Rd8 {[%clk 0:02:27]} 11. Qc2 {[%clk 0:02:59]}  a6 {[%clk 0:02:15]} 12. Rad1 {[%clk 0:02:59]}  Rb8 {[%clk 0:02:15]} 13. dxe5 {[%clk 0:02:44]}  Nxe5 {[%clk 0:02:14]} 14. Nxe5 {[%clk 0:02:45]}  Qxe5 {[%clk 0:02:14]} 15. Ne2 {[%clk 0:02:44]}  Bf5 {[%clk 0:02:05]} 16. Qc1 {[%clk 0:02:44]}  d5 {[%clk 0:02:03]} 17. Bb2 {[%clk 0:02:43]}  Qe7 {[%clk 0:02:02]} 18. Nd4 {[%clk 0:02:38]}  Be4 {[%clk 0:02:00]} 19. f3 {[%clk 0:02:37]}  Bf5 {[%clk 0:01:59]} 20. Nxf5 {[%clk 0:02:37]}  gxf5 {[%clk 0:01:59]} 21. Rfe1 {[%clk 0:02:35]}  dxc4 {[%clk 0:01:56]} 22. Rxd8+ {[%clk 0:02:35]}  Rxd8 {[%clk 0:01:55]} 23. Qxc4 {[%clk 0:02:35]}  Rd2 {[%clk 0:01:50]} 24. Bc3 {[%clk 0:02:21]}  Rxa2 {[%clk 0:01:43]} 25. b4 {[%clk 0:02:21]}  Ra4 {[%clk 0:01:40]} 26. Qb3 {[%clk 0:02:17]}  b5 {[%clk 0:01:38]} 27. e4 {[%clk 0:02:11]}  fxe4 {[%clk 0:01:38]} 28. fxe4 {[%clk 0:02:11]}  Nd7 {[%clk 0:01:36]} 29. e5 {[%clk 0:01:52]}  Nxe5 {[%clk 0:01:22]} 30. Bxc6 {[%clk 0:01:49]}  Kh8 {[%clk 0:00:59]} 31. Qd5 {[%clk 0:01:44]}  f6 {[%clk 0:00:57]} 32. Kg2 {[%clk 0:01:35]}  Ra3 {[%clk 0:00:55]} 33. Re3 {[%clk 0:01:27]}  Qc7 {[%clk 0:00:41]} 34. Bxe5 {[%clk 0:01:26]} 1-0


[Site "https://www.chess.com"]

[Event "Titled Tuesday Blitz November 08 Late 2022"]
[White "Al-Tarboush, Ward"]
[Black "Polster, Christian"]
[WhiteFideId "7601450"]
[BlackFideId "12965081"]
[WhiteElo "2273"]
[BlackElo "2209"]
[Result "1-0"]
[Round "01"]
[TimeControl "180+1"]
[Date "2022.11.09"]
[WhiteClock "0:00:59"]
[BlackClock "0:00:19"]

1. e4 {[%clk 0:02:59]}  c5 {[%clk 0:02:58]} 2. Nf3 {[%clk 0:02:59]}  d6 {[%clk 0:02:57]} 3. d4 {[%clk 0:02:59]}  cxd4 {[%clk 0:02:58]} 4. Nxd4 {[%clk 0:03:00]}  Nf6 {[%clk 0:02:44]} 5. Nc3 {[%clk 0:02:59]}  a6 {[%clk 0:02:44]} 6. h3 {[%clk 0:02:59]}  e6 {[%clk 0:02:41]} 7. g4 {[%clk 0:02:58]}  Nfd7 {[%clk 0:02:41]} 8. Bg2 {[%clk 0:02:58]}  Be7 {[%clk 0:02:41]} 9. Be3 {[%clk 0:02:56]}  b5 {[%clk 0:02:36]} 10. Qd2 {[%clk 0:02:53]}  Bb7 {[%clk 0:02:35]} 11. O-O-O {[%clk 0:02:51]}  Ne5 {[%clk 0:02:35]} 12. Kb1 {[%clk 0:02:48]}  Nc4 {[%clk 0:02:31]} 13. Qe2 {[%clk 0:02:48]}  Nxe3 {[%clk 0:02:30]} 14. Qxe3 {[%clk 0:02:49]}  Nd7 {[%clk 0:02:29]} 15. f4 {[%clk 0:02:48]}  b4 {[%clk 0:02:22]} 16. Nce2 {[%clk 0:02:46]}  Qb6 {[%clk 0:01:50]} 17. Qg3 {[%clk 0:02:19]}  a5 {[%clk 0:01:48]} 18. e5 {[%clk 0:02:14]}  Bxg2 {[%clk 0:01:39]} 19. Qxg2 {[%clk 0:02:15]}  d5 {[%clk 0:01:38]} 20. f5 {[%clk 0:02:13]}  O-O {[%clk 0:01:07]} 21. g5 {[%clk 0:02:03]}  exf5 {[%clk 0:00:54]} 22. Nxf5 {[%clk 0:02:04]}  Bc5 {[%clk 0:00:53]} 23. Rxd5 {[%clk 0:01:58]}  Rfd8 {[%clk 0:00:43]} 24. Rxd7 {[%clk 0:01:43]}  Rxd7 {[%clk 0:00:39]} 25. Qxa8+ {[%clk 0:01:43]}  Rd8 {[%clk 0:00:40]} 26. Qe4 {[%clk 0:01:39]}  a4 {[%clk 0:00:32]} 27. Qc4 {[%clk 0:01:13]}  Bg1 {[%clk 0:00:27]} 28. Nd6 {[%clk 0:01:02]}  Qb7 {[%clk 0:00:20]} 29. Nxb7 {[%clk 0:00:59]}  Rd1+ {[%clk 0:00:19]} 30. Nc1 {[%clk 0:00:59]}  Be3 {[%clk 0:00:19]} 31. Qc8+ {[%clk 0:00:58]}  Rd8 {[%clk 0:00:19]} 32. Qxd8# {[%clk 0:00:59]} 1-0


[Site "https://www.chess.com"]

[Event "Titled Tuesday Blitz November 08 Late 2022"]
[White "Alfaro, William"]
[Black "Lewtak, Damian"]
[WhiteFideId "6100457"]
[BlackFideId "1141724"]
[WhiteElo "2096"]
[BlackElo "2329"]
[Result "0-1"]
[Round "01"]
[TimeControl "180+1"]
[Date "2022.11.09"]
[WhiteClock "0:01:52"]
[BlackClock "0:01:35"]

1. Nf3 {[%clk 0:02:59]}  b6 {[%clk 0:02:58]} 2. g3 {[%clk 0:02:59]}  Bb7 {[%clk 0:02:59]} 3. Bg2 {[%clk 0:02:58]}  g6 {[%clk 0:03:00]} 4. O-O {[%clk 0:02:58]}  Bg7 {[%clk 0:02:59]} 5. d3 {[%clk 0:02:58]}  d6 {[%clk 0:03:00]} 6. e4 {[%clk 0:02:58]}  Nd7 {[%clk 0:03:00]} 7. Re1 {[%clk 0:02:55]}  e5 {[%clk 0:03:00]} 8. Nbd2 {[%clk 0:02:56]}  a5 {[%clk 0:02:56]} 9. Nc4 {[%clk 0:02:51]}  Ne7 {[%clk 0:02:48]} 10. Bg5 {[%clk 0:02:50]}  h6 {[%clk 0:02:47]} 11. Bd2 {[%clk 0:02:50]}  g5 {[%clk 0:02:47]} 12. h4 {[%clk 0:02:50]}  gxh4 {[%clk 0:02:41]} 13. Nxh4 {[%clk 0:02:49]}  h5 {[%clk 0:02:37]} 14. Ne3 {[%clk 0:02:47]}  Bf6 {[%clk 0:02:33]} 15. Nhf5 {[%clk 0:02:46]}  Nxf5 {[%clk 0:02:34]} 16. Nxf5 {[%clk 0:02:46]}  Bg5 {[%clk 0:02:31]} 17. f4 {[%clk 0:02:41]}  Bf6 {[%clk 0:02:24]} 18. Qf3 {[%clk 0:02:27]}  Nc5 {[%clk 0:02:14]} 19. c3 {[%clk 0:02:17]}  Ne6 {[%clk 0:02:12]} 20. Rf1 {[%clk 0:02:11]}  exf4 {[%clk 0:02:12]} 21. gxf4 {[%clk 0:02:11]}  Qd7 {[%clk 0:02:08]} 22. Qe3 {[%clk 0:02:09]}  O-O-O {[%clk 0:02:05]} 23. e5 {[%clk 0:02:07]}  dxe5 {[%clk 0:02:00]} 24. fxe5 {[%clk 0:02:07]}  Rdg8 {[%clk 0:01:50]} 25. Rf3 {[%clk 0:01:59]}  Bg5 {[%clk 0:01:44]} 26. Qe2 {[%clk 0:01:57]}  Bxd2 {[%clk 0:01:43]} 27. Raf1 {[%clk 0:01:52]}  Nf4 {[%clk 0:01:35]} 0-1


[Site "https://www.chess.com"]

[Event "Titled Tuesday Blitz November 08 Late 2022"]
[White "Baskakov, Egor"]
[Black "Mazurkiewicz, Michal"]
[WhiteFideId "24197866"]
[BlackFideId "1124943"]
[WhiteElo "2211"]
[BlackElo "2063"]
[Result "0-1"]
[Round "01"]
[TimeControl "180+1"]
[Date "2022.11.09"]
[WhiteClock "0:00:51"]
[BlackClock "0:00:05"]

1. e4 {[%clk 0:03:00]}  d6 {[%clk 0:02:59]} 2. g3 {[%clk 0:03:00]}  Nf6 {[%clk 0:03:00]} 3. Bg2 {[%clk 0:03:00]}  g6 {[%clk 0:03:01]} 4. Ne2 {[%clk 0:02:59]}  Bg7 {[%clk 0:03:01]} 5. O-O {[%clk 0:02:59]}  O-O {[%clk 0:03:02]} 6. d4 {[%clk 0:02:58]}  c6 {[%clk 0:03:01]} 7. c4 {[%clk 0:02:58]}  e5 {[%clk 0:03:01]} 8. Nbc3 {[%clk 0:02:58]}  Nbd7 {[%clk 0:03:00]} 9. h3 {[%clk 0:02:58]}  Re8 {[%clk 0:02:58]} 10. Re1 {[%clk 0:02:58]}  exd4 {[%clk 0:02:58]} 11. Nxd4 {[%clk 0:02:59]}  Nc5 {[%clk 0:02:58]} 12. Nb3 {[%clk 0:02:59]}  Be6 {[%clk 0:02:52]} 13. Qe2 {[%clk 0:02:57]}  Nxb3 {[%clk 0:02:38]} 14. axb3 {[%clk 0:02:57]}  Qb6 {[%clk 0:02:35]} 15. Ra3 {[%clk 0:02:57]}  a5 {[%clk 0:02:32]} 16. Be3 {[%clk 0:02:56]}  Qc7 {[%clk 0:02:33]} 17. Raa1 {[%clk 0:02:49]}  Nd7 {[%clk 0:02:31]} 18. Rac1 {[%clk 0:02:47]}  Nc5 {[%clk 0:02:32]} 19. Qc2 {[%clk 0:02:36]}  Qb6 {[%clk 0:02:24]} 20. Bxc5 {[%clk 0:02:36]}  Qxc5 {[%clk 0:02:20]} 21. Kh2 {[%clk 0:02:29]}  Rab8 {[%clk 0:02:15]} 22. Qd1 {[%clk 0:02:27]}  Qxf2 {[%clk 0:02:09]} 23. Qxd6 {[%clk 0:02:20]}  Bxh3 {[%clk 0:02:02]} 24. Kxh3 {[%clk 0:02:18]}  Be5 {[%clk 0:02:02]} 25. Qd3 {[%clk 0:02:18]}  Rbd8 {[%clk 0:01:55]} 26. Qf3 {[%clk 0:02:16]}  Qxb2 {[%clk 0:01:53]} 27. Na4 {[%clk 0:02:16]}  Qd2 {[%clk 0:01:29]} 28. Qe3 {[%clk 0:02:03]}  Qb4 {[%clk 0:01:12]} 29. Rcd1 {[%clk 0:01:55]}  b5 {[%clk 0:01:10]} 30. cxb5 {[%clk 0:01:52]}  cxb5 {[%clk 0:01:09]} 31. Nb6 {[%clk 0:01:50]}  Bd4 {[%clk 0:01:06]} 32. Rxd4 {[%clk 0:01:21]}  Rxd4 {[%clk 0:01:07]} 33. Rf1 {[%clk 0:01:12]}  Qd6 {[%clk 0:00:19]} 34. Qf3 {[%clk 0:01:11]}  Qf8 {[%clk 0:00:19]} 35. Nd5 {[%clk 0:01:10]}  Qh6+ {[%clk 0:00:19]} 36. Kg4 {[%clk 0:01:10]}  f5+ {[%clk 0:00:17]} 37. Qxf5 {[%clk 0:00:58]}  gxf5+ {[%clk 0:00:17]} 38. Rxf5 {[%clk 0:00:58]}  Rexe4+ {[%clk 0:00:12]} 39. Bxe4 {[%clk 0:00:57]}  Rxe4+ {[%clk 0:00:13]} 40. Kf3 {[%clk 0:00:58]}  Re6 {[%clk 0:00:13]} 41. Nf4 {[%clk 0:00:57]}  Rf6 {[%clk 0:00:12]} 42. Rxb5 {[%clk 0:00:57]}  Qh1+ {[%clk 0:00:08]} 43. Kg4 {[%clk 0:00:57]}  Qd1+ {[%clk 0:00:08]} 44. Kh4 {[%clk 0:00:57]}  Qh1+ {[%clk 0:00:07]} 45. Kg4 {[%clk 0:00:57]}  Qd1+ {[%clk 0:00:07]} 46. Kh4 {[%clk 0:00:58]}  Qd8 {[%clk 0:00:07]} 47. Kh3 {[%clk 0:00:57]}  Rf7 {[%clk 0:00:05]} 48. Rd5 {[%clk 0:00:55]}  Qc8+ {[%clk 0:00:05]} 49. Kg2 {[%clk 0:00:53]}  Qb7 {[%clk 0:00:03]} 50. Kh2 {[%clk 0:00:53]}  Rxf4 {[%clk 0:00:03]} 51. Rg5+ {[%clk 0:00:54]}  Kh8 {[%clk 0:00:03]} 52. gxf4 {[%clk 0:00:54]}  Qxb3 {[%clk 0:00:04]} 53. Rxa5 {[%clk 0:00:51]}  Qb2+ {[%clk 0:00:03]} 54. Kh1 {[%clk 0:00:51]}  Qc1+ {[%clk 0:00:03]} 55. Kg2 {[%clk 0:00:50]}  Qd2+ {[%clk 0:00:04]} 56. Kh3 {[%clk 0:00:51]}  Qxa5 {[%clk 0:00:05]} 0-1


[Site "https://www.chess.com"]

[Event "Titled Tuesday Blitz November 08 Late 2022"]
[White "Bazeev, German"]
[Black "Leschinsky, Gary"]
[WhiteFideId "24119350"]
[BlackFideId "30951321"]
[WhiteElo "2493"]
[BlackElo "1855"]
[Result "1-0"]
[Round "01"]
[TimeControl "180+1"]
[Date "2022.11.09"]
[WhiteClock "0:00:17"]
[BlackClock "0:00:04"]

1. d4 {[%clk 0:02:57]}  d5 {[%clk 0:02:57]} 2. Nf3 {[%clk 0:02:57]}  Nf6 {[%clk 0:02:57]} 3. c4 {[%clk 0:02:57]}  c6 {[%clk 0:02:57]} 4. Qc2 {[%clk 0:02:56]}  g6 {[%clk 0:02:56]} 5. Bf4 {[%clk 0:02:56]}  dxc4 {[%clk 0:02:15]} 6. Qxc4 {[%clk 0:02:33]}  Bg7 {[%clk 0:02:14]} 7. e3 {[%clk 0:02:32]}  O-O {[%clk 0:02:13]} 8. Nbd2 {[%clk 0:02:26]}  Be6 {[%clk 0:02:11]} 9. Qc2 {[%clk 0:02:21]}  Nbd7 {[%clk 0:02:08]} 10. Be2 {[%clk 0:02:12]}  c5 {[%clk 0:01:59]} 11. O-O {[%clk 0:02:09]}  Rc8 {[%clk 0:01:56]} 12. Qa4 {[%clk 0:02:01]}  a6 {[%clk 0:01:47]} 13. Rac1 {[%clk 0:01:57]}  Qb6 {[%clk 0:01:43]} 14. Qa3 {[%clk 0:01:26]}  Nh5 {[%clk 0:01:29]} 15. Bg5 {[%clk 0:01:10]}  f6 {[%clk 0:01:13]} 16. Bh4 {[%clk 0:01:10]}  g5 {[%clk 0:01:12]} 17. Bxg5 {[%clk 0:00:59]}  fxg5 {[%clk 0:01:11]} 18. Nxg5 {[%clk 0:01:00]}  cxd4 {[%clk 0:00:39]} 19. Bxh5 {[%clk 0:00:55]}  dxe3 {[%clk 0:00:30]} 20. Nxe6 {[%clk 0:00:32]}  exd2 {[%clk 0:00:20]} 21. Rxc8 {[%clk 0:00:28]}  Rxc8 {[%clk 0:00:13]} 22. Nxg7 {[%clk 0:00:24]}  Rc1 {[%clk 0:00:11]} 23. Qd3 {[%clk 0:00:09]}  Kxg7 {[%clk 0:00:09]} 24. Qxd2 {[%clk 0:00:07]}  Rxf1+ {[%clk 0:00:06]} 25. Kxf1 {[%clk 0:00:08]}  Nf6 {[%clk 0:00:07]} 26. Bf3 {[%clk 0:00:08]}  Qc5 {[%clk 0:00:07]} 27. g3 {[%clk 0:00:08]}  b5 {[%clk 0:00:07]} 28. Kg2 {[%clk 0:00:08]}  b4 {[%clk 0:00:07]} 29. Qe2 {[%clk 0:00:09]}  a5 {[%clk 0:00:07]} 30. b3 {[%clk 0:00:08]}  Kf8 {[%clk 0:00:06]} 31. h4 {[%clk 0:00:08]}  Kg7 {[%clk 0:00:07]} 32. g4 {[%clk 0:00:08]}  Nd7 {[%clk 0:00:06]} 33. Qe6 {[%clk 0:00:07]}  Ne5 {[%clk 0:00:06]} 34. Qf5 {[%clk 0:00:07]}  Qd6 {[%clk 0:00:04]} 35. Be4 {[%clk 0:00:07]}  Ng6 {[%clk 0:00:03]} 36. Kh3 {[%clk 0:00:03]}  Qd4 {[%clk 0:00:03]} 37. h5 {[%clk 0:00:03]}  Qc3+ {[%clk 0:00:03]} 38. f3 {[%clk 0:00:02]}  Nf8 {[%clk 0:00:02]} 39. Qg5+ {[%clk 0:00:03]}  Kf7 {[%clk 0:00:02]} 40. Qf5+ {[%clk 0:00:03]}  Kg7 {[%clk 0:00:03]} 41. Qxa5 {[%clk 0:00:03]}  Qe1 {[%clk 0:00:02]} 42. Qg5+ {[%clk 0:00:03]}  Kf7 {[%clk 0:00:03]} 43. Qf4+ {[%clk 0:00:04]}  Kg7 {[%clk 0:00:03]} 44. Qg3 {[%clk 0:00:05]}  Qh1+ {[%clk 0:00:02]} 45. Qh2 {[%clk 0:00:05]}  Qf1+ {[%clk 0:00:03]} 46. Qg2 {[%clk 0:00:06]}  Qa1 {[%clk 0:00:03]} 47. g5 {[%clk 0:00:06]}  Ne6 {[%clk 0:00:03]} 48. h6+ {[%clk 0:00:07]}  Kf7 {[%clk 0:00:03]} 49. Qg4 {[%clk 0:00:08]}  Qh1+ {[%clk 0:00:03]} 50. Kg3 {[%clk 0:00:08]}  Qg1+ {[%clk 0:00:03]} 51. Kh4 {[%clk 0:00:09]}  Qh2+ {[%clk 0:00:03]} 52. Qh3 {[%clk 0:00:09]}  Qf2+ {[%clk 0:00:04]} 53. Qg3 {[%clk 0:00:08]}  Qxg3+ {[%clk 0:00:03]} 54. Kxg3 {[%clk 0:00:08]}  Nxg5 {[%clk 0:00:04]} 55. Bf5 {[%clk 0:00:09]}  Kf6 {[%clk 0:00:04]} 56. Kg4 {[%clk 0:00:09]}  Nf7 {[%clk 0:00:04]} 57. Bxh7 {[%clk 0:00:09]}  Nxh6+ {[%clk 0:00:05]} 58. Kf4 {[%clk 0:00:09]}  Nf7 {[%clk 0:00:05]} 59. Bc2 {[%clk 0:00:09]}  Nd6 {[%clk 0:00:04]} 60. Ke3 {[%clk 0:00:09]}  Ke5 {[%clk 0:00:04]} 61. f4+ {[%clk 0:00:09]}  Kd5 {[%clk 0:00:05]} 62. Bd1 {[%clk 0:00:10]}  Kc5 {[%clk 0:00:05]} 63. Bf3 {[%clk 0:00:11]}  Nf5+ {[%clk 0:00:06]} 64. Ke4 {[%clk 0:00:11]}  Nd4 {[%clk 0:00:05]} 65. Bh5 {[%clk 0:00:11]}  Nb5 {[%clk 0:00:06]} 66. Ke5 {[%clk 0:00:11]}  Nc3 {[%clk 0:00:04]} 67. Ke6 {[%clk 0:00:12]}  Nxa2 {[%clk 0:00:05]} 68. Kxe7 {[%clk 0:00:12]}  Nc1 {[%clk 0:00:05]} 69. f5 {[%clk 0:00:13]}  Nd3 {[%clk 0:00:05]} 70. f6 {[%clk 0:00:13]}  Ne5 {[%clk 0:00:04]} 71. f7 {[%clk 0:00:14]}  Nxf7 {[%clk 0:00:03]} 72. Bxf7 {[%clk 0:00:15]}  Kd4 {[%clk 0:00:04]} 73. Bc4 {[%clk 0:00:16]}  Kc3 {[%clk 0:00:04]} 74. Kf6 {[%clk 0:00:17]} 1-0


[Site "https://www.chess.com"]

[Event "Titled Tuesday Blitz November 08 Late 2022"]
[White "Bilan, Danila"]
[Black "Shapiro, Bryan"]
[WhiteFideId "24161918"]
[BlackFideId "2087740"]
[WhiteElo "2173"]
[BlackElo "1884"]
[Result "0-1"]
[Round "01"]
[TimeControl "180+1"]
[Date "2022.11.09"]
[WhiteClock "0:00:03"]
[BlackClock "0:00:05"]

1. d4 {[%clk 0:02:57]}  Nf6 {[%clk 0:03:00]} 2. Nf3 {[%clk 0:02:57]}  e6 {[%clk 0:03:00]} 3. g3 {[%clk 0:02:57]}  b6 {[%clk 0:02:57]} 4. Bg2 {[%clk 0:02:56]}  Bb7 {[%clk 0:02:58]} 5. O-O {[%clk 0:02:57]}  Be7 {[%clk 0:02:55]} 6. c4 {[%clk 0:02:56]}  O-O {[%clk 0:02:55]} 7. d5 {[%clk 0:02:56]}  exd5 {[%clk 0:02:51]} 8. Nh4 {[%clk 0:02:56]}  Ne4 {[%clk 0:02:49]} 9. cxd5 {[%clk 0:02:55]}  Nd6 {[%clk 0:02:26]} 10. Nf3 {[%clk 0:02:44]}  Re8 {[%clk 0:02:22]} 11. Nc3 {[%clk 0:02:39]}  Bf6 {[%clk 0:02:20]} 12. Re1 {[%clk 0:02:28]}  Ne4 {[%clk 0:02:19]} 13. Qd3 {[%clk 0:02:08]}  Nxc3 {[%clk 0:02:18]} 14. bxc3 {[%clk 0:02:07]}  d6 {[%clk 0:02:18]} 15. e4 {[%clk 0:01:56]}  Nd7 {[%clk 0:02:17]} 16. Nd4 {[%clk 0:01:47]}  g6 {[%clk 0:02:14]} 17. Bb2 {[%clk 0:01:36]}  Nc5 {[%clk 0:02:03]} 18. Qc2 {[%clk 0:01:31]}  Qd7 {[%clk 0:01:58]} 19. Nb3 {[%clk 0:01:07]}  Na4 {[%clk 0:01:40]} 20. Rad1 {[%clk 0:00:56]}  Nxb2 {[%clk 0:01:40]} 21. Qxb2 {[%clk 0:00:57]}  a5 {[%clk 0:01:39]} 22. Nd4 {[%clk 0:00:53]}  a4 {[%clk 0:01:30]} 23. f4 {[%clk 0:00:50]}  Bg7 {[%clk 0:01:25]} 24. Qb4 {[%clk 0:00:41]}  Ra5 {[%clk 0:01:21]} 25. a3 {[%clk 0:00:38]}  h5 {[%clk 0:01:14]} 26. h4 {[%clk 0:00:31]}  Rc5 {[%clk 0:01:14]} 27. Kh2 {[%clk 0:00:28]}  Re7 {[%clk 0:01:06]} 28. Bh3 {[%clk 0:00:28]}  Qe8 {[%clk 0:01:00]} 29. Bg2 {[%clk 0:00:13]}  Bxd5 {[%clk 0:00:58]} 30. e5 {[%clk 0:00:06]}  Bxg2 {[%clk 0:00:57]} 31. Kxg2 {[%clk 0:00:06]}  dxe5 {[%clk 0:00:58]} 32. fxe5 {[%clk 0:00:06]}  Rcxe5 {[%clk 0:00:54]} 33. Rxe5 {[%clk 0:00:06]}  Rxe5 {[%clk 0:00:53]} 34. Qc4 {[%clk 0:00:06]}  Rc5 {[%clk 0:00:49]} 35. Qd3 {[%clk 0:00:06]}  Qd7 {[%clk 0:00:46]} 36. Rf1 {[%clk 0:00:04]}  Qd5+ {[%clk 0:00:45]} 37. Kh2 {[%clk 0:00:04]}  Rc4 {[%clk 0:00:44]} 38. Re1 {[%clk 0:00:03]}  Bxd4 {[%clk 0:00:41]} 39. cxd4 {[%clk 0:00:03]}  Qxd4 {[%clk 0:00:40]} 40. Qf3 {[%clk 0:00:02]}  Qc3 {[%clk 0:00:37]} 41. Re3 {[%clk 0:00:02]}  Qc2+ {[%clk 0:00:33]} 42. Kh3 {[%clk 0:00:02]}  Qf5+ {[%clk 0:00:33]} 43. Qxf5 {[%clk 0:00:03]}  gxf5 {[%clk 0:00:34]} 44. Re5 {[%clk 0:00:03]}  Rc5 {[%clk 0:00:33]} 45. Re3 {[%clk 0:00:03]}  Kg7 {[%clk 0:00:33]} 46. Kg2 {[%clk 0:00:03]}  Kf6 {[%clk 0:00:34]} 47. Kf3 {[%clk 0:00:04]}  Re5 {[%clk 0:00:33]} 48. Rc3 {[%clk 0:00:04]}  c5 {[%clk 0:00:32]} 49. Rd3 {[%clk 0:00:05]}  Ke6 {[%clk 0:00:32]} 50. Kf4 {[%clk 0:00:05]}  Re4+ {[%clk 0:00:32]} 51. Kg5 {[%clk 0:00:06]}  Rg4+ {[%clk 0:00:32]} 52. Kxh5 {[%clk 0:00:06]}  c4 {[%clk 0:00:27]} 53. Re3+ {[%clk 0:00:06]}  Kf6 {[%clk 0:00:27]} 54. Kh6 {[%clk 0:00:06]}  Re4 {[%clk 0:00:23]} 55. Rf3 {[%clk 0:00:06]}  Re8 {[%clk 0:00:22]} 56. Kh7 {[%clk 0:00:06]}  Rc8 {[%clk 0:00:21]} 57. Rc3 {[%clk 0:00:06]}  b5 {[%clk 0:00:20]} 58. h5 {[%clk 0:00:06]}  b4 {[%clk 0:00:20]} 59. axb4 {[%clk 0:00:07]}  a3 {[%clk 0:00:20]} 60. Rxa3 {[%clk 0:00:07]}  c3 {[%clk 0:00:21]} 61. Ra1 {[%clk 0:00:08]}  c2 {[%clk 0:00:21]} 62. Rc1 {[%clk 0:00:08]}  Kg5 {[%clk 0:00:20]} 63. Kg7 {[%clk 0:00:05]}  f6 {[%clk 0:00:20]} 64. h6 {[%clk 0:00:05]}  Rc7+ {[%clk 0:00:21]} 65. Kf8 {[%clk 0:00:05]}  Kxh6 {[%clk 0:00:21]} 66. b5 {[%clk 0:00:06]}  Kg5 {[%clk 0:00:21]} 67. b6 {[%clk 0:00:05]}  Rb7 {[%clk 0:00:21]} 68. Rxc2 {[%clk 0:00:06]}  Rxb6 {[%clk 0:00:22]} 69. Rc3 {[%clk 0:00:07]}  Rb7 {[%clk 0:00:22]} 70. Kg8 {[%clk 0:00:07]}  Kg4 {[%clk 0:00:22]} 71. Kf8 {[%clk 0:00:07]}  Rd7 {[%clk 0:00:20]} 72. Ke8 {[%clk 0:00:06]}  Rh7 {[%clk 0:00:20]} 73. Kf8 {[%clk 0:00:07]}  Rh3 {[%clk 0:00:20]} 74. Kf7 {[%clk 0:00:08]}  Rxg3 {[%clk 0:00:20]} 75. Rc4+ {[%clk 0:00:08]}  Kg5 {[%clk 0:00:20]} 76. Rc6 {[%clk 0:00:08]}  Ra3 {[%clk 0:00:18]} 77. Rc5 {[%clk 0:00:07]}  Ra6 {[%clk 0:00:16]} 78. Kg7 {[%clk 0:00:06]}  Kg4 {[%clk 0:00:15]} 79. Kg6 {[%clk 0:00:07]}  f4 {[%clk 0:00:15]} 80. Rc4 {[%clk 0:00:07]}  Kg3 {[%clk 0:00:12]} 81. Kf5 {[%clk 0:00:05]}  f3 {[%clk 0:00:10]} 82. Rc3 {[%clk 0:00:05]}  Kg2 {[%clk 0:00:10]} 83. Kf4 {[%clk 0:00:04]}  f2 {[%clk 0:00:10]} 84. Rg3+ {[%clk 0:00:04]}  Kf1 {[%clk 0:00:09]} 85. Rb3 {[%clk 0:00:03]}  Kg2 {[%clk 0:00:08]} 86. Rg3+ {[%clk 0:00:03]}  Kf1 {[%clk 0:00:07]} 87. Rb3 {[%clk 0:00:03]}  Ra2 {[%clk 0:00:04]} 88. Kf3 {[%clk 0:00:04]}  Kg1 {[%clk 0:00:02]} 89. Kg3 {[%clk 0:00:02]}  f1=Q {[%clk 0:00:03]} 90. Re3 {[%clk 0:00:02]}  Qg2+ {[%clk 0:00:03]} 91. Kf4 {[%clk 0:00:03]}  Qf2+ {[%clk 0:00:03]} 92. Ke4 {[%clk 0:00:03]}  Ra4+ {[%clk 0:00:03]} 93. Kd3 {[%clk 0:00:03]}  Qf1+ {[%clk 0:00:03]} 94. Kd2 {[%clk 0:00:03]}  Ra2+ {[%clk 0:00:03]} 95. Kc3 {[%clk 0:00:03]}  Qc1+ {[%clk 0:00:03]} 96. Kd4 {[%clk 0:00:04]}  Qd2+ {[%clk 0:00:03]} 97. Rd3 {[%clk 0:00:05]}  Ra4+ {[%clk 0:00:03]} 98. Kc5 {[%clk 0:00:02]}  Qxd3 {[%clk 0:00:04]} 99. Kb6 {[%clk 0:00:03]}  Qd6+ {[%clk 0:00:03]} 100. Kb5 {[%clk 0:00:03]}  Rb4+ {[%clk 0:00:04]} 101. Ka5 {[%clk 0:00:03]}  Qb6# {[%clk 0:00:05]} 0-1


[Site "https://www.chess.com"]